Cogmind - Beta 10.2 @@@ ROGUE MODE // 2020.11.20 @ 17:18:28 // Halloween2020/ForbiddenLore Player: AF_C2_5001 Result: Escaped! Performance ------------- Evolutions (9) 4500 Regions Visited (21) 4200 Robots Destroyed (340) 1700 Value Destroyed (19118) 19118 Prototype IDs (73) 1460 Alien Tech Used (8) 1600 Bonus (14159) 14159 TOTAL SCORE: 46737 Bonus ------- High Alert Combat Kills 4622 Follower Combat Kills 2399 Network Hubs Disabled 200 Met Imprinter 300 Met Zhirov 300 A7 Reached Mainframe 300 Met R17 at Cetus 500 Acquired SGEMP 2000 Delivered SGEMP 2000 Win 3000 Friendly Fire -1462 Cogmind --------- Core Integrity 1333/1600 Matter 236/300 Energy 324/1150 System Corruption 0% Temperature Cool (14) Movement Treading (162) Location To Epsilon Eridani Parts ------- > --- POWER (2) -------- Reinforced Quantum Reactor > --- PROPULSION (4) --- Advanced Heavy Treads Improved Heavy Siege Treads > --- UTILITY (16) ----- 2N-1CE's Frost Array Large Storage Unit Large Storage Unit Large Storage Unit Large Storage Unit High-capacity Storage Unit Advanced Energy Well Enhanced Optical Array Experimental Target Analyzer > --- WEAPON (3) ------- Core Cannon > --- INVENTORY (36) --- Particle Reactor Reinforced Quantum Reactor Centrium Heavy Treads Myomer Exoskeleton Coolant Network Large Storage Unit Advanced Variable Charge Gun Warp Gun Heavy Quantum Rifle Cooled Nova Cannon KE Penetrator KE Penetrator KE Penetrator Railgun Railgun Helical Railgun Rocket Array Rocket Array Z-bomb Delivery System Sigix Broadsword Peak State ------------ > --- POWER ------------ Fusion Reactor Cooled Antimatter Reactor > --- PROPULSION ------- Advanced Heavy Siege Treads High-density Centrium Heavy Treads > --- UTILITY ---------- Experimental Heat Sink Large Storage Unit Large Storage Unit Large Storage Unit Large Storage Unit High-capacity Storage Unit Enhanced Optical Array Experimental Targeting Computer Experimental Target Analyzer Experimental Core Analyzer Advanced Cloaking Device Centrium Medium Armor Plating Centrium Medium Armor Plating Advanced Remote Shield > --- WEAPON ----------- Heavy Quantum Rifle Sigix Broadsword > --- INVENTORY -------- Improved Heavy Treads Advanced Heavy Treads Improved Heavy Siege Treads Centrium Heavy Treads Myomer Exoskeleton Coolant Network Coolant Network Large Storage Unit Advanced Energy Well Layered Heavy Armor Plating Advanced Dynamic Insulation System Cooled Plasma Rifle Advanced Variable Charge Gun Advanced Variable Charge Gun Quantum Rifle Heavy Phase Cannon Core Cannon Railgun Helical Railgun Multirail Rocket Array Rocket Array Supercharged Sigix Terminator SGEMP Prototype [Rating: 204] Favorites ----------- Power Micro Fission Core Engine Improved Deuterium Engine Power Core Micro Fission Core Reactor Cooled Antimatter Reactor Propulsion Light Treads Treads Light Treads Leg Aluminum Leg Wheel Wheel Utility Large Storage Unit Device Advanced Heat Sink Storage Large Storage Unit Processor Enhanced Optical Array Hackware Advanced Hacking Suite Protection Centrium Medium Armor Plating Artifact Matter Drive Weapon KE Penetrator Energy Gun Advanced Variable Charge Gun Energy Cannon Ion Burst Cannon Ballistic Gun KE Penetrator Ballistic Cannon Graviton Cannon Launcher Rocket Array Special Weapon Improved Remote Datajack Slashing Weapon Sigix Broadsword Piercing Weapon Makeshift Spear Special Melee Weapon Improved Datajack Build | -11 -10 -9 -9 -7 -6 -6 -6 -6 -6 -6 -5 -5 -5 -5 -4 -4 -3 -3 -2 -2 -1 ------- Run | Scr Mat Mat Min Zio Pro Fac Ext Cet Arc Hub Fac Upp Upp Zhi Pro Fac Res Qua Res Tes Acc Slots Evolved 18 | . . 2 . . . 6 . . . . 2 . . . . 2 2 . 2 . 2 Power 1 | . . . . . . . . . . . . . . . . . . . 1 . . Propulsion 2 | . . . . . . 1 . . . . . . . . . . . . 1 . . Utility 14 | . . 2 . . . 4 . . . . 2 . . . . 2 2 . . . 2 Weapon 1 | . . . . . . 1 . . . . . . . . . . . . . . . Parts Attached 354 | 7 3 8 5 10 11 35 10 8 6 15 51 12 7 13 . 19 26 24 13 56 15 Power 19 | 1 1 1 . 1 1 1 . 1 . 1 2 . . 1 . 2 . 1 1 3 1 Engine 8 | 1 1 1 . 1 1 1 . . . . . . . 1 . 1 . . . . . Core 3 | . . . . . . . . . . . 2 . . . . 1 . . . . . Reactor 8 | . . . . . . . . 1 . 1 . . . . . . . 1 1 3 1 Propulsion 48 | 3 . 1 1 . 3 6 5 1 . 4 5 . . . . 1 4 . 4 8 2 Treads 45 | 2 . 1 1 . 2 5 5 1 . 4 5 . . . . 1 4 . 4 8 2 Leg 1 | 1 . . . . . . . . . . . . . . . . . . . . . Wheel 2 | . . . . . 1 1 . . . . . . . . . . . . . . . Hover . | . . . . . . . . . . . . . . . . . . . . . . Flight . | . . . . . . . . . . . . . . . . . . . . . . Utility 158 | 1 1 3 2 3 1 16 1 1 3 5 26 6 5 6 . 8 15 16 5 29 5 Device 55 | . . 1 . 2 1 1 . . . 1 6 4 3 3 . 4 3 5 3 16 2 Storage 23 | 1 1 . 1 . . 3 1 1 . . 3 . . 2 . . 5 . . 4 1 Processor 18 | . . . . . . 4 . . . . 3 1 1 . . 2 2 3 1 1 . Hackware 8 | . . . . . . 3 . . . . 3 . . . . 1 1 . . . . Protection 52 | . . 2 1 1 . 5 . . 3 4 11 1 1 1 . 1 4 6 1 8 2 Artifact 2 | . . . . . . . . . . . . . . . . . . 2 . . . Weapon 129 | 2 1 3 2 6 6 12 4 5 3 5 18 6 2 6 . 8 7 7 3 16 7 Energy Gun 27 | 1 1 1 1 . 3 . . 1 . 1 4 . 1 3 . 5 2 . . 3 . Energy Cannon 19 | . . . . . . 1 . . . . 1 2 . 1 . 2 4 1 . 5 2 Ballistic Gun 57 | 1 . 2 . 2 2 9 3 4 3 4 9 2 1 1 . 1 . 4 3 4 2 Ballistic Cannon 1 | . . . . . . . . . . . . . . . . . . . . 1 . Launcher 16 | . . . 1 2 . 1 1 . . . 3 2 . . . . . 1 . 2 3 Special Weapon 2 | . . . . . . . . . . . 1 . . 1 . . . . . . . Impact Weapon . | . . . . . . . . . . . . . . . . . . . . . . Slashing Weapon 4 | . . . . . . 1 . . . . . . . . . . 1 1 . 1 . Piercing Weapon 2 | . . . . 1 1 . . . . . . . . . . . . . . . . Special Melee Weapon 1 | . . . . 1 . . . . . . . . . . . . . . . . . Unidentified Prototypes 42 | . . 1 . 3 . 2 . 2 . 2 1 . 1 3 . 1 4 7 3 9 3 Parts Lost 70 | . 1 . . . 13 1 . . . 11 10 . . . . 3 6 4 2 11 8 Power 5 | . . . . . 1 . . . . 1 1 . . . . . . 1 . . 1 Propulsion 12 | . . . . . 4 1 . . . 2 2 . . . . . . . 1 . 2 Utility 36 | . . . . . 3 . . . . 4 3 . . . . 3 4 3 1 11 4 Weapon 17 | . 1 . . . 5 . . . . 4 4 . . . . . 2 . . . 1 Highest Loss Streak 13 | . 1 . . . 13 1 . . . 4 4 . . . . 1 3 2 2 4 8 Average Slot Usage (%) 87 | . 85 84 100 95 87 89 93 86 86 90 90 93 93 81 94 92 87 83 82 82 65 Engine 2 | . 14 11 11 11 10 6 6 . . . . . . 1 5 4 . . . . . Core 1 | . . . . . . . . . . . 4 5 5 3 . . 4 2 . . . Reactor 2 | . . . . . . . . 5 6 5 . . . . . . . 1 6 7 7 Treads 12 | . 28 22 22 22 17 14 20 13 13 12 10 11 11 11 11 10 9 9 8 7 7 Device 6 | . . 7 11 11 9 1 . . . 1 5 10 10 10 11 11 8 4 6 10 3 Storage 17 | . 14 11 11 11 9 9 13 15 20 20 17 17 17 17 17 15 21 23 21 21 20 Processor 12 | . . . . . . 8 13 13 13 13 8 11 11 11 11 12 16 23 26 19 8 Hackware 3 | . . . . . . 8 6 4 . . 10 . . . . 5 5 1 . . . Protection 11 | . . 10 22 22 19 15 13 13 13 17 11 16 16 17 17 15 5 3 4 5 10 Energy Gun 3 | . 24 10 9 . 1 . . 1 . . 3 5 5 . 17 11 8 . . . . Energy Cannon 1 | . . . . . . 2 . . . . 2 1 5 . . 2 4 2 . 1 . Ballistic Gun 8 | . 3 11 11 15 16 16 20 18 19 19 8 7 4 . . . . 3 4 2 3 Slashing Weapon 1 | . . . . . . . . . . . . . . . . . . 2 4 4 3 Naked Turns . | . . . . . . . . . . . . . . . . . . . . . . Heaviest Build 202 | 11 25 34 34 38 38 79 94 118 118 122 121 117 118 118 112 120 166 172 188 202 198 Greatest Support 170 | 40 40 40 40 40 40 68 81 110 110 110 107 107 107 107 107 108 110 95 120 170 165 Greatest Overweight (x) 11 | . . . . . 11 5 1 1 1 1 3 1 1 1 1 1 1 1 3 2 1 Average Overweight (x) . | . . . . . . 1 . . . . . . 1 . 1 . 1 1 1 . . Largest Inventory Capacity 38 | 6 12 10 10 10 10 16 18 24 24 24 24 24 24 24 24 24 38 38 38 38 36 Average Capacity 25 | 5 9 10 10 10 8 13 16 19 24 24 24 24 24 24 24 24 34 38 38 37 36 Most Carried 38 | 4 6 10 10 10 10 16 18 24 24 24 24 24 24 24 24 24 38 38 38 38 35 Average Carried 24 | 1 5 8 10 9 8 12 16 19 23 23 22 23 23 23 24 23 33 37 36 36 32 Final Capacity 38 | 6 10 10 10 10 4 16 18 24 24 24 24 24 24 24 24 24 38 38 38 38 36 Final Carried 38 | 4 6 10 10 10 4 16 18 24 24 20 24 24 24 24 24 24 38 38 38 38 25 Class Distribution -------------------- 24% | Scavenger-Tank 15% | Scavenger-Mutant 14% | Scavenger-Gunner 10% | Hauler-Gladiator 10% | Hauler-Mutant 8% | Hauler-Gunner 4% | Mutant 4% | Scavenger-Gladiator 3% | Commander-Gunner Dominant Class ---------------- Mutant | -10/Materials Scavenger-Mutant | -9/Materials Scavenger-Mutant | -9/Mines Scavenger-Mutant | -7/Zion Scavenger-Mutant | -6/Proximity Caves Scavenger-Gunner | -6/Factory Commander-Gunner | -6/Extension Scavenger-Gunner | -6/Cetus Scavenger-Gunner | -6/Archives Scavenger-Tank | -6/Hub_04(d) Scavenger-Tank | -5/Factory Scavenger-Tank | -5/Upper Caves Scavenger-Tank | -5/Upper Caves Scavenger-Mutant | -5/Zhirov Scavenger-Tank | -4/Proximity Caves Scavenger-Tank | -4/Factory Hauler-Gunner | -3/Research Hauler-Gladiator | -3/Quarantine Scavenger-Gladiator | -2/Research Hauler-Gladiator | -2/Testing Hauler-Mutant | -1/Access Resources | -11 -10 -9 -9 -7 -6 -6 -6 -6 -6 -6 -5 -5 -5 -5 -4 -4 -3 -3 -2 -2 -1 ----------- Run | Scr Mat Mat Min Zio Pro Fac Ext Cet Arc Hub Fac Upp Upp Zhi Pro Fac Res Qua Res Tes Acc Matter Collected 7841 | 193 83 240 . 138 85 998 451 266 411 672 1681 165 285 . 211 206 226 381 166 863 120 Remotely . | . . . . . . . . . . . . . . . . . . . . . . Salvage Created 17169 | . 217 374 13 . 24 1050 438 102 433 1312 3527 240 76 . 75 1015 1483 1213 758 4487 332 Parts 775 | . 16 28 3 . 3 42 19 4 27 70 141 14 6 . 3 53 46 55 35 198 12 Haulers Intercepted 12 | . . 1 . . . 1 . . . . 2 . . . . 2 3 . 1 1 1 Recyclers Shooed 15 | . 1 . . . . 1 1 . . 1 7 . . . . 2 2 . . . . Parts Field Recycled . | . . . . . . . . . . . . . . . . . . . . . . Retrieved Matter . | . . . . . . . . . . . . . . . . . . . . . . Parts Self-Destructed 25 | . . . . 2 2 . . . . . . 7 1 . 13 . . . . . . Prevented 3 | . . . . . . . . . . . . . 2 . 1 . . . . . . Kills | -11 -10 -9 -9 -7 -6 -6 -6 -6 -6 -6 -5 -5 -5 -5 -4 -4 -3 -3 -2 -2 -1 ------- Run | Scr Mat Mat Min Zio Pro Fac Ext Cet Arc Hub Fac Upp Upp Zhi Pro Fac Res Qua Res Tes Acc Combat Hostiles Destroyed 277 | . 9 10 3 . . 14 8 . 4 18 49 8 1 . 1 16 22 18 7 60 29 Melee 59 | . . . . . . . . . . . . . . . . . . 7 6 44 2 Guns 129 | . 7 10 . . . 13 6 . 4 18 37 3 . . 1 11 10 3 1 4 1 Cannons 24 | . . . . . . 1 . . . . 5 . 1 . . 1 9 5 . 2 . AOE 58 | . 2 . 3 . . . 2 . . . 7 5 . . . 2 . 2 . 9 26 Classes Destroyed 22 | . 2 2 . . 1 4 1 . 1 3 3 1 . . . . 1 1 . 1 1 Worker 10 | . . . . . . 2 . . . 1 1 . . . . . . . . 2 4 Builder 15 | . . . . . . . . . . 4 . . . . . 3 2 . . 2 4 Hauler 12 | . . 1 . . . 1 . . . . 2 . . . . 2 3 . 1 1 1 Recycler 10 | . . . . . . 1 . . . . 6 . . . . . . . . 1 2 Carrier 2 | . . . . . . . . . . . . . . . . . . . . . 2 Minesweeper 1 | . . . . . 1 . . . . . . . . . . . . . . . . Mechanic 3 | . . . . . . . 1 . . . . . . . . . . . . 1 1 Operator 4 | . . . . . . . . . 3 . . . . . . . . . 1 . . Watcher 5 | . . . . . . . . . . 2 . . . . . . 1 1 . . 1 Swarmer 41 | . 6 4 3 . . . 2 . . . . 5 . . . . 5 . . 5 11 Saboteur 1 | . . . . . . . . . . . 1 . . . . . . . . . . Grunt 81 | . 3 3 . . . 5 2 . . 9 16 2 . . 1 1 5 12 . 13 9 Brawler 10 | . . . . . . . . . . 1 2 . . . . . . . . 7 . Duelist 4 | . . . . . . . . . . . 3 . . . . . . . . . 1 Protector 2 | . . . . . . . . . . . 2 . . . . . . . . . . Sentry 45 | . . 3 . . . 4 4 . 4 7 8 . . . . 4 3 . 3 2 3 Hunter 28 | . . . . . . 1 . . . 1 3 . . . . 5 6 3 2 5 2 Programmer 55 | . . . . . . 4 . . . . 14 . . . . 6 2 2 1 24 2 Behemoth 3 | . . . . . . . . . . . . . . . . . 1 . 1 . 1 Enhanced Grunt 1 | . . . . . . . . 1 . . . . . . . . . . . . . Striker 2 | . . . . . . . . . . . . . . . . . . . . 2 . Alpha 7 2 | . . . . . . . . . . . . . . . . . . 1 . 1 . Protovariant Y 1 | . . . . . . . . . . . . . . . . . . . . 1 . Mutant 2 | . . . . . . . . . . . . 1 1 . . . . . . . . Best Kill Streak 36 | . 8 5 3 . 1 5 3 . 3 8 9 5 1 . 1 5 5 6 2 9 36 Combat Bots Only 21 | . 8 5 3 . . 4 3 . 3 8 7 5 1 . 1 4 5 6 2 9 21 Max Kills in Single Turn 36 | . 2 2 2 . 1 2 2 1 1 4 3 4 1 . 1 4 2 1 1 6 36 Gunslinging 1 | . 1 1 . . . . . . . 1 1 . . . . . . . . . . Exploded 21 | . 2 . 2 . . . 2 . . . 2 4 . . . 2 . 1 . 5 21 Melee 1 | . . . . . . . . . . . . . . . . . . 1 1 1 1 Uniques/NPCs Destroyed . | . . . . . . . . . . . . . . . . . . . . . . Combat | -11 -10 -9 -9 -7 -6 -6 -6 -6 -6 -6 -5 -5 -5 -5 -4 -4 -3 -3 -2 -2 -1 -------- Run | Scr Mat Mat Min Zio Pro Fac Ext Cet Arc Hub Fac Upp Upp Zhi Pro Fac Res Qua Res Tes Acc Damage Taken 36079 | . 259 509 46 . 1074 1463 1009 145 411 3740 4828 245 41 . 166 1627 2804 3095 1520 9240 3857 Core 1895 | . 47 81 . . 151 85 50 . 48 167 235 46 . . . 23 229 156 69 322 186 Absorbed by Shields 2244 | . . . . . . . 272 22 . . . . . . . . . . 20 1930 . Reduced by Siege Mode 883 | . . . . . . . . . . 5 42 . . . . 3 99 104 48 419 163 Core Remaining (%) 73 | 100 81 . . . 42 . . . . 58 . . . . 71 98 . 70 . 57 83 Volleys Fired 593 | . 18 40 3 . 11 56 24 13 27 61 134 10 3 3 4 33 62 27 7 45 12 Largest 3 | . 2 2 2 . 2 3 3 3 3 3 3 3 3 1 3 3 3 3 1 1 2 Hottest 421 | . 90 79 53 . 130 128 86 84 94 240 368 193 223 40 300 300 421 251 45 98 345 Shots Fired 1480 | . 36 77 4 . 22 164 71 28 80 180 355 25 8 3 12 99 185 63 6 46 16 Gun 1278 | . 36 77 1 . 22 150 70 28 80 180 304 23 5 . 12 97 129 25 6 24 9 Cannon 179 | . . . . . . 14 . . . . 45 . 3 . . 2 56 36 . 18 5 Launcher 20 | . . . 3 . . . 1 . . . 6 2 . . . . . 2 . 4 2 Special 3 | . . . . . . . . . . . . . . 3 . . . . . . . Kinetic 848 | . 11 47 1 . 5 150 70 23 80 179 209 12 2 . . 5 . 17 6 22 9 Thermal 558 | . 7 22 . . 17 14 . 5 . 1 140 11 6 . 12 93 185 19 . 20 6 Explosive 19 | . . . 3 . . . 1 . . . 6 2 . . . . . 2 . 4 1 Electromagnetic 52 | . 18 8 . . . . . . . . . . . . . 1 . 25 . . . Robot Hit Streak 35 | . 10 9 4 . 13 13 14 7 22 29 27 10 9 12 8 35 30 12 9 12 16 Robot Miss Streak 13 | . 4 2 . . 3 8 4 2 3 4 4 2 . . 8 13 7 3 2 1 2 Penetration Max 1 | . . . . . . 1 1 1 . 1 1 . . . . . . 1 . 1 . Secondary Targets 16 | . 1 2 . . . 1 1 . . 5 5 . . . . 1 . . . . . Max Gunslinging Chain 1 | . 1 1 . . . 1 1 . . 1 1 . . . . 1 . . . . . Shots Hit Robots 1369 | . 23 52 3 9 21 130 60 19 58 135 256 19 5 3 8 88 150 69 33 205 23 Core Hits 865 | . 13 18 3 . 16 74 36 8 21 46 203 15 2 . 2 66 89 46 22 132 53 Critical Hits 166 | . . . . . . 2 5 2 4 29 17 1 . . . . 2 11 8 78 7 Critical Kills 51 | . . . . . . . 3 1 3 8 5 1 . . . . 1 3 1 25 . Critical Parts Destroyed 91 | . . . . . . 2 2 1 1 16 12 . . . . . 1 7 5 38 6 Melee Attacks 327 | . . . . 9 1 1 . . . . . . . . . . . 48 33 216 19 Impact . | . . . . . . . . . . . . . . . . . . . . . . Slashing 317 | . . . . . . 1 . . . . . . . . . . . 48 33 216 19 Piercing 1 | . . . . . 1 . . . . . . . . . . . . . . . . Sneak Attacks 19 | . . . . 9 1 . . . . . . . . . . . . . 1 7 1 Combat Hostiles . | . . . . . . . . . . . . . . . . . . . . . . Follow-up Attacks . | . . . . . . . . . . . . . . . . . . . . . . Damage Inflicted 89764 | . 328 691 231 . 392 2449 1671 473 1174 4191 9400 757 178 . 109 3339 4620 4186 2363 15420 37792 Guns 23458 | . 238 686 . . 321 2228 1514 473 1162 3799 5732 420 93 . 109 2255 2781 534 171 675 267 Cannons 6238 | . . . . . . 218 . . . . 1704 . 85 . . 84 1813 1050 . 284 1000 Explosions 41257 | . 90 . 231 . . . 141 . . 372 1952 337 . . . 1000 . 574 . 910 35650 Melee 18717 | . . . . . 71 . . . . . . . . . . . . 2028 2192 13551 875 Ramming 94 | . . 5 . . . 3 16 . 12 20 12 . . . . . 26 . . . . Kinetic 15023 | . 27 438 . . 64 2228 1514 473 1162 3799 3629 206 21 . . 51 . 298 171 675 267 Thermal 50216 | . 166 171 . . 257 218 . . . . 3998 214 157 . 109 3265 4594 575 . 284 36208 Explosive 4396 | . . . 231 . . . 141 . . . 1761 337 . . . . . 574 . 910 442 Electromagnetic 1318 | . 135 77 . . . . . . . 372 . . . . . 23 . 711 . . . Impact . | . . . . . . . . . . . . . . . . . . . . . . Slashing 18646 | . . . . . . . . . . . . . . . . . . 2028 2192 13551 875 Piercing 71 | . . . . . 71 . . . . . . . . . . . . . . . . Highest Corruption 23 | . . . . . . 6 6 6 6 8 16 18 18 18 18 4 . 1 2 23 . Average Corruption 7 | . . . . . . 1 6 6 6 6 7 17 18 18 18 3 . 1 1 5 . Corruption Purged . | . . . . . . . . . . . . . . . . . . . . . . Effects 444 | . . . . . . 13 37 18 17 29 98 45 43 23 14 3 . 1 7 96 . Message Errors 94 | . . . . . . 2 8 3 4 4 22 7 7 8 6 1 . 1 2 19 . Matter Fused 76 | . . . . . . . 9 5 5 2 13 9 9 6 1 . . . . 17 . Heat Flow Errors 41 | . . . . . . 3 6 . . 1 7 5 5 2 1 1 . . 2 8 . Energy Discharges 45 | . . . . . . 2 3 1 1 2 10 5 4 . . 1 . . . 16 . Parts Rejected 4 | . . . . . . . . . 1 . 1 . . . . . . . . 2 . Data Loss (minor) 35 | . . . . . . 4 5 3 . 2 2 5 2 1 4 . . . 1 6 . Data Loss (major) 12 | . . . . . . . . 2 2 . 3 2 3 . . . . . . . . Misfires 10 | . . . . . . . 2 . . 2 . 1 2 . 1 . . . . 2 . Alerts 2 | . . . . . . . . . . . . . 1 . . . . . . 1 . Misdirections 26 | . . . . . . . . . . . 4 7 8 5 . . . . . 2 . Targeting Errors 78 | . . . . . . 2 3 3 3 14 24 4 1 1 . . . . 1 22 . Weapon Failures 21 | . . . . . . . 1 1 1 2 12 . 1 . 1 . . . 1 1 . Overload Shots 7 | . . . . . . . . . . 1 4 . . . . . 2 . . . . Overflow Damage 4853 | . 27 . 69 . . 7 . . 2 31 62 . . . . 157 27 186 13 607 3665 Projectiles 135 | . . . . . . 7 . . . . 31 . . . . . 27 70 . . . Explosions 3992 | . 27 . 69 . . . . . . 31 31 . . . . 157 . 2 . 10 3665 Melee 726 | . . . . . . . . . 2 . . . . . . . . 114 13 597 . Knockbacks . | . . . . . . . . . . . . . . . . . . . . . . Impact . | . . . . . . . . . . . . . . . . . . . . . . Kinetic . | . . . . . . . . . . . . . . . . . . . . . . Secondary . | . . . . . . . . . . . . . . . . . . . . . . Self-Inflicted Damage 1718 | . 38 . . . . . . . . 89 175 21 . . . . . 35 . . 1360 Shots 9 | . 1 . . . . . . . . 1 3 1 . . . . . 2 . . 1 Rammed 13 | . . 1 . . . 1 2 . 1 2 3 . . . . . 3 . . . . Targets Rammed 13 | . . 1 . . . 1 2 . 1 2 3 . . . . . 3 . . . . Kicked . | . . . . . . . . . . . . . . . . . . . . . . Crushed . | . . . . . . . . . . . . . . . . . . . . . . Highest Temperature 502 | . 82 30 . . 26 277 258 152 258 364 502 223 258 193 212 304 . . 203 205 399 Average Temperature 95 | . 32 12 . . 11 65 68 54 95 178 99 67 85 92 76 87 . . 112 65 169 Received Heat Transfer 5079 | . 36 189 . . 168 354 246 . 36 1011 972 45 9 . 39 57 267 672 228 612 138 Effects 11 | . . . . . . 1 . . 1 7 2 . . . . . . . . . . Shutdowns 1 | . . . . . . . . . . . 1 . . . . . . . . . . Energy Bleed 6 | . . . . . . . . . 1 4 1 . . . . . . . . . . Interference 1 | . . . . . . 1 . . . . . . . . . . . . . . . Short Circuit 2 | . . . . . . . . . . 2 . . . . . . . . . . . Damage (minor) 1 | . . . . . . . . . . 1 . . . . . . . . . . . Siege Activations 51 | . . . . . . . . . . 1 5 2 1 . . 6 11 6 4 14 1 Total Turns 1119 | . . . . . . . . . . 14 69 52 4 . . 57 179 98 96 538 12 Longest Duration 145 | . . . . . . . . . . 14 37 50 4 . . 22 47 37 59 145 12 Robots Corrupted 3 | . . . . . . . . . . 1 . . . . . . . 2 . . . Combat Hostiles 1 | . . . . . . . . . . . . . . . . . . 1 . . . Parts Fried 6 | . . . . . . . . . . 3 . . . . . . . 2 . . 1 Impact Corruptions 1 | . . . . . . . . . 1 . . . . . . . . . . . . Robots Melted 6 | . . . . . . . . . . . . . . . . 2 3 . . 1 . Combat Hostiles 6 | . . . . . . . . . . . . . . . . 2 3 . . 1 . Parts Melted 51 | . . . . . . . . . . . 7 2 . . . 10 25 1 . 5 1 Heat Transferred 17759 | . 322 370 . . 340 296 . . . . 4300 259 124 . 175 4287 6394 484 . 248 160 Parts Sabotaged . | . . . . . . . . . . . . . . . . . . . . . . Parts Stolen . | . . . . . . . . . . . . . . . . . . . . . . Parts Stripped . | . . . . . . . . . . . . . . . . . . . . . . Power Chain Reactions 1 | . 1 . . . . . . . . . . . . . . . . . . . . Missiles Intercepted . | . . . . . . . . . . . . . . . . . . . . . . Alert | -11 -10 -9 -9 -7 -6 -6 -6 -6 -6 -6 -5 -5 -5 -5 -4 -4 -3 -3 -2 -2 -1 ------- Run | Scr Mat Mat Min Zio Pro Fac Ext Cet Arc Hub Fac Upp Upp Zhi Pro Fac Res Qua Res Tes Acc Peak Influence 6020 | . 205 333 161 . . 269 498 685 393 862 1119 . . . . 427 463 530 335 1272 6020 Initial 763 | . . 86 76 . . . 91 220 224 67 407 . . . . 135 138 240 192 184 763 Average 399 | . 153 204 156 . . 133 261 465 347 421 597 . . . . 216 313 375 246 494 1511 Maximum Alert Level 5 | . 1 1 . . . 1 2 2 1 3 4 . . . . 2 2 2 1 4 5 Low Security (%) 20 | 100 37 54 100 . . 72 30 . 4 35 . . . . . 48 8 . 15 11 . Level 1 40 | . 62 45 . . . 27 63 34 95 17 13 . . . . 48 65 66 84 29 . Level 2 26 | . . . . . . . 6 65 . 20 62 . . . . 3 25 33 . 36 . Level 3 9 | . . . . . . . . . . 25 24 . . . . . . . . 18 46 Level 4 1 | . . . . . . . . . . . . . . . . . . . . 4 46 Level 5 . | . . . . . . . . . . . . . . . . . . . . . 7 High Security . | . . . . . . . . . . . . . . . . . . . . . . Max Security . | . . . . . . . . . . . . . . . . . . . . . . Squads Dispatched 65 | . . 1 . . . 6 1 . . 10 11 . . . . 4 5 3 6 14 4 Investigation 3 | . . . . . . 1 1 . . . 1 . . . . . . . . . . Extermination 21 | . . . . . . 3 . . . . 3 . . . . 2 1 1 2 9 . Reinforcement 20 | . . 1 . . . 1 . . . 4 4 . . . . 2 3 2 1 1 1 Assault 12 | . . . . . . . . . . 2 3 . . . . . 1 . . 4 2 Garrison 9 | . . . . . . 1 . . . 4 . . . . . . . . 3 . 1 Intercept . | . . . . . . . . . . . . . . . . . . . . . . Construction Impeded 4 | . . . . . . . . . . 1 1 . . . . 1 . . . . 1 Haulers Reinforced 6 | . . . . . . . . . . 1 1 . . . . . 3 . . 1 . Stealth | -11 -10 -9 -9 -7 -6 -6 -6 -6 -6 -6 -5 -5 -5 -5 -4 -4 -3 -3 -2 -2 -1 --------- Run | Scr Mat Mat Min Zio Pro Fac Ext Cet Arc Hub Fac Upp Upp Zhi Pro Fac Res Qua Res Tes Acc Distress Signals 21 | . 2 2 . . . 1 3 2 . 3 1 . . . . 2 . 2 1 1 1 Communications Jammed . | . . . . . . . . . . . . . . . . . . . . . . Distress Signals . | . . . . . . . . . . . . . . . . . . . . . . Times Spotted 466 | . 11 16 3 . 1 19 30 14 10 49 68 8 1 . 7 27 33 33 17 96 23 Peak Tracking Total 9 | . 9 4 3 . 1 4 6 5 1 9 8 5 1 . 4 6 6 7 5 9 5 Tactical Retreats 35 | . . 1 . . . 2 . 1 . 6 4 . . . . . 1 7 1 12 . Traps | -11 -10 -9 -9 -7 -6 -6 -6 -6 -6 -6 -5 -5 -5 -5 -4 -4 -3 -3 -2 -2 -1 ------- Run | Scr Mat Mat Min Zio Pro Fac Ext Cet Arc Hub Fac Upp Upp Zhi Pro Fac Res Qua Res Tes Acc Traps Triggered 14 | . . . . . . 4 1 . . . 2 . . . . 1 2 . . 4 . Indirectly . | . . . . . . . . . . . . . . . . . . . . . . Trap Hack Attempts . | . . . . . . . . . . . . . . . . . . . . . . Triggered . | . . . . . . . . . . . . . . . . . . . . . . Disarmed . | . . . . . . . . . . . . . . . . . . . . . . Reprogrammed 6 | . . . . . . . . . . . . . . . . 6 . . . . . Reused . | . . . . . . . . . . . . . . . . . . . . . . Traps Extracted . | . . . . . . . . . . . . . . . . . . . . . . Installed . | . . . . . . . . . . . . . . . . . . . . . . Triggered 3 | . . . . . . . . . . . . 2 . . 1 . . . . . . Machines | -11 -10 -9 -9 -7 -6 -6 -6 -6 -6 -6 -5 -5 -5 -5 -4 -4 -3 -3 -2 -2 -1 ---------- Run | Scr Mat Mat Min Zio Pro Fac Ext Cet Arc Hub Fac Upp Upp Zhi Pro Fac Res Qua Res Tes Acc Machines Disabled 77 | . . . . . . . 6 3 3 11 7 1 1 . . 4 2 11 1 7 20 Max in Single Turn 17 | . . . . . . . 1 1 1 5 2 1 1 . . 4 1 1 1 1 17 Garrison Access 7 | . . . . . . . . . . 1 1 . . . . . 2 1 . 1 1 Network Hub 1 | . . . . . . . . . . 1 . . . . . . . . . . . Machines Sabotaged . | . . . . . . . . . . . . . . . . . . . . . . Garrisons Compromised . | . . . . . . . . . . . . . . . . . . . . . . Overloaded Fab Kills . | . . . . . . . . . . . . . . . . . . . . . . Fab Network Shutdowns . | . . . . . . . . . . . . . . . . . . . . . . Hacking | -11 -10 -9 -9 -7 -6 -6 -6 -6 -6 -6 -5 -5 -5 -5 -4 -4 -3 -3 -2 -2 -1 --------- Run | Scr Mat Mat Min Zio Pro Fac Ext Cet Arc Hub Fac Upp Upp Zhi Pro Fac Res Qua Res Tes Acc Machines Accessed 64 | . 1 . . 1 . 7 7 2 . 2 11 1 1 6 . 2 5 7 2 9 . Terminals 44 | . 1 . . . . 7 7 2 . 1 8 . 1 . . 2 1 6 2 6 . Fabricators 3 | . . . . . . . . . . . . . . . . . 1 . . 2 . Repair Stations 3 | . . . . . . . . . . . 2 . . . . . 1 . . . . Recycling Units . | . . . . . . . . . . . . . . . . . . . . . . Scanalyzers 1 | . . . . . . . . . . . . . . . . . 1 . . . . Garrison Access 5 | . . . . . . . . . . 1 1 . . . . . 1 1 . 1 . Total Hacks 191 | . 2 . . 5 . 19 13 2 . 5 55 1 1 20 . 8 11 17 10 22 . Successful 104 | . . . . 5 . 9 8 2 . 1 23 1 1 20 . 3 7 9 6 9 . Failed 86 | . 2 . . . . 10 5 . . 4 31 . . . . 5 4 8 4 13 . Catastrophic 28 | . 2 . . . . 3 . . . 1 12 . . . . 1 . 1 3 5 . Database Lockouts 1 | . . . . . . . . . . . 1 . . . . . . . . . . Manual 62 | . . . . . . 12 3 1 . . 32 . . . . 3 . 2 6 3 . Terminals 137 | . 2 . . . . 19 13 2 . 4 44 . 1 . . 8 2 16 10 16 . Fabricators 7 | . . . . . . . . . . . . . . . . . 3 . . 4 . Repair Stations 11 | . . . . . . . . . . . 9 . . . . . 2 . . . . Recycling Units . | . . . . . . . . . . . . . . . . . . . . . . Scanalyzers 1 | . . . . . . . . . . . . . . . . . 1 . . . . Garrison Access 9 | . . . . . . . . . . 1 2 . . . . . 3 1 . 2 . Terminal Hacks 77 | . . . . 5 . 4 6 2 . 1 15 1 1 20 . 3 1 8 5 5 . Record 13 | . . . . . . . . 1 . . . . 1 8 . . . 3 . . . Part Schematic 10 | . . . . 5 . . . . . . . . . 4 . 1 . . . . . Robot Analysis 7 | . . . . . . . . . . . 3 . . 4 . . . . . . . Prototype ID Bank 12 | . . . . . . 2 . . . . 2 . . 4 . 1 . . 1 2 . Open Door 8 | . . . . . . . 4 1 . . . 1 . . . . 1 1 . . . Branch Access Points 3 | . . . . . . 1 . . . . 1 . . . . . . . 1 . . Terminal Index 2 | . . . . . . . . . . . 1 . . . . . . . 1 . . Garrison Index 1 | . . . . . . 1 . . . . . . . . . . . . . . . Alert Level 2 | . . . . . . . . . . . 1 . . . . . . . . 1 . Unreport Threat 6 | . . . . . . . 2 . . . 3 . . . . . . 1 . . . Reprogram Traps 1 | . . . . . . . . . . . . . . . . 1 . . . . . Transport Status 1 | . . . . . . . . . . . . . . . . . . . 1 . . Recall Reinforcements 1 | . . . . . . . . . . . 1 . . . . . . . . . . Zone Layout 10 | . . . . . . . . . . 1 3 . . . . . . 3 1 2 . Fabricator Hacks 3 | . . . . . . . . . . . . . . . . . 2 . . 1 . Load Schematic 2 | . . . . . . . . . . . . . . . . . 1 . . 1 . Build 1 | . . . . . . . . . . . . . . . . . 1 . . . . Repair Station Hacks 6 | . . . . . . . . . . . 4 . . . . . 2 . . . . Scan Component 3 | . . . . . . . . . . . 2 . . . . . 1 . . . . Repair 3 | . . . . . . . . . . . 2 . . . . . 1 . . . . Recycling Unit Hacks . | . . . . . . . . . . . . . . . . . . . . . . Scanalyzer 1 | . . . . . . . . . . . . . . . . . 1 . . . . Insert Component 1 | . . . . . . . . . . . . . . . . . 1 . . . . Garrison Access Hacks 4 | . . . . . . . . . . . 1 . . . . . 1 1 . 1 . Seal Access 4 | . . . . . . . . . . . 1 . . . . . 1 1 . 1 . Unauthorized Hacks 13 | . . . . . . 5 2 . . . 3 . . . . . . . 1 2 . Terminals 12 | . . . . . . 5 2 . . . 2 . . . . . . . 1 2 . Track 6 | . . . . . . 3 1 . . . 1 . . . . . . . . 1 . Botnet 5 | . . . . . . 2 . . . . 1 . . . . . . . 1 1 . Disrupt 1 | . . . . . . . 1 . . . . . . . . . . . . . . Fabricators . | . . . . . . . . . . . . . . . . . . . . . . Repair Stations 1 | . . . . . . . . . . . 1 . . . . . . . . . . Mechanics 1 | . . . . . . . . . . . 1 . . . . . . . . . . Recycling Units . | . . . . . . . . . . . . . . . . . . . . . . Scanalyzers . | . . . . . . . . . . . . . . . . . . . . . . Garrison Access . | . . . . . . . . . . . . . . . . . . . . . . Data Cores Recovered 2 | . . . . . . . 1 . . . . . . . . . . . 1 . . Used . | . . . . . . . . . . . . . . . . . . . . . . Hacking Detections 40 | . 1 . . . . 7 5 . . 2 9 . . . . 2 1 3 2 8 . Full Trace Events 1 | . . . . . . . . . . . 1 . . . . . . . . . . Feedback Events . | . . . . . . . . . . . . . . . . . . . . . . Feedback Blocked . | . . . . . . . . . . . . . . . . . . . . . . Robot Schematics Acquired . | . . . . . . . . . . . . . . . . . . . . . . Robots Built . | . . . . . . . . . . . . . . . . . . . . . . Matter . | . . . . . . . . . . . . . . . . . . . . . . Time . | . . . . . . . . . . . . . . . . . . . . . . Total Robot Build Rating . | . . . . . . . . . . . . . . . . . . . . . . Part Schematics Acquired 10 | . . . . 5 . . . . . . . . . 4 . 1 . . . . . Parts Built 1 | . . . . . . . . . . . . . . . . . 1 . . . . Matter 102 | . . . . . . . . . . . . . . . . . 102 . . . . Time 17 | . . . . . . . . . . . . . . . . . 17 . . . . Total Part Build Rating 1 | . . . . . . . . . . . . . . . . . 1 . . . . Parts Repaired 3 | . . . . . . . . . . . 2 . . . . . 1 . . . . Time 270 | . . . . . . . . . . . 216 . . . . . 54 . . . . Parts Recycled . | . . . . . . . . . . . . . . . . . . . . . . Recycled Matter . | . . . . . . . . . . . . . . . . . . . . . . Retrieved Matter . | . . . . . . . . . . . . . . . . . . . . . . Retrieved Components . | . . . . . . . . . . . . . . . . . . . . . . Parts Scanalyzed . | . . . . . . . . . . . . . . . . . . . . . . Part Schematics Acquired . | . . . . . . . . . . . . . . . . . . . . . . Parts Damaged . | . . . . . . . . . . . . . . . . . . . . . . Bothacking | -11 -10 -9 -9 -7 -6 -6 -6 -6 -6 -6 -5 -5 -5 -5 -4 -4 -3 -3 -2 -2 -1 ------------ Run | Scr Mat Mat Min Zio Pro Fac Ext Cet Arc Hub Fac Upp Upp Zhi Pro Fac Res Qua Res Tes Acc Used RIF Installer . | . . . . . . . . . . . . . . . . . . . . . . Robots Hacked 8 | . . . . 5 . . . . . . . . . 3 . . . . . . . Non-combat 1 | . . . . 1 . . . . . . . . . . . . . . . . . Combat 7 | . . . . 4 . . . . . . . . . 3 . . . . . . . Robot Hacks Applied 12 | . . . . 9 . . . . . . . . . 3 . . . . . . . parse_system 12 | . . . . 9 . . . . . . . . . 3 . . . . . . . Relay Couplers Released 7 | . . . . . . . . . . 2 . . . . . . 2 . . . 3 Machine Destruction 7 | . . . . . . . . . . 2 . . . . . . 2 . . . 3 Robots Rewired 24 | . . . . . . . 20 . . . . . 4 . . . . . . . . Allies Hacked . | . . . . . . . . . . . . . . . . . . . . . . Hacks Repelled . | . . . . . . . . . . . . . . . . . . . . . . Allies | -11 -10 -9 -9 -7 -6 -6 -6 -6 -6 -6 -5 -5 -5 -5 -4 -4 -3 -3 -2 -2 -1 -------- Run | Scr Mat Mat Min Zio Pro Fac Ext Cet Arc Hub Fac Upp Upp Zhi Pro Fac Res Qua Res Tes Acc Total Allies 36 | . . . . 2 . . 25 2 . . . . 4 . . . . . . . 3 Largest Group 15 | . . . . 2 2 1 15 12 3 . . . 4 4 4 4 . . . . 3 Highest-Rated Group 557 | . . . . 45 45 20 557 473 236 . . . 113 113 113 113 . . . . 368 Highest-Rated Ally 156 | . . . . 25 25 20 156 140 126 . . . 31 31 31 31 . . . . 131 Total Orders 6 | . . . . . . . . 1 . 1 . 2 . 1 . 1 . . . . . GUARD 1 | . . . . . . . . 1 . . . . . . . . . . . . . EXPLORE 4 | . . . . . . . . . . 1 . 2 . . . 1 . . . . . RETURN 1 | . . . . . . . . . . . . . . 1 . . . . . . . Ally Attacks 349 | . . . . . 13 . 122 109 2 . . . . . 31 22 . . . . 50 Total Damage 9479 | . . . . . 307 . 3200 2909 98 . . . . . 497 433 . . . . 2035 Kills 62 | . . . . . 1 . 26 19 . . . . . . 6 1 . . . . 9 Allies Corrupted . | . . . . . . . . . . . . . . . . . . . . . . Allies Melted . | . . . . . . . . . . . . . . . . . . . . . . Intel | -11 -10 -9 -9 -7 -6 -6 -6 -6 -6 -6 -5 -5 -5 -5 -4 -4 -3 -3 -2 -2 -1 ------- Run | Scr Mat Mat Min Zio Pro Fac Ext Cet Arc Hub Fac Upp Upp Zhi Pro Fac Res Qua Res Tes Acc Robot Analysis Total 7 | . . . . . . . . . . . 3 . . 4 . . . . . . . Derelict Logs Recovered 8 | . . . 1 1 3 . . . . . . 1 2 . . . . . . . . Drone Launches 11 | . . . . . . . . . . 1 . 2 . 3 . 3 . . . 2 . Drone Recoveries 6 | . . . . . . . . . . 1 . 2 . 3 . . . . . . . Exploration | -11 -10 -9 -9 -7 -6 -6 -6 -6 -6 -6 -5 -5 -5 -5 -4 -4 -3 -3 -2 -2 -1 ------------- Run | Scr Mat Mat Min Zio Pro Fac Ext Cet Arc Hub Fac Upp Upp Zhi Pro Fac Res Qua Res Tes Acc Turns Passed 21271 | 70 296 565 58 1344 441 1692 1146 575 419 539 2913 965 695 385 275 1209 1499 1611 763 3444 367 Spaces Moved 9348 | 39 140 263 28 811 255 870 513 298 187 164 1233 414 335 210 140 515 567 717 271 1233 145 Core 14 | 4 . . . . 10 . . . . . . . . . . . . . . . . Treads 8923 | 32 140 263 28 811 192 515 513 298 187 164 1233 414 335 210 140 515 567 717 271 1233 145 Legs 3 | 3 . . . . . . . . . . . . . . . . . . . . . Wheels 408 | . . . . . 53 355 . . . . . . . . . . . . . . . Hover . | . . . . . . . . . . . . . . . . . . . . . . Flight . | . . . . . . . . . . . . . . . . . . . . . . Fastest Speed 50 | 50 160 160 160 160 50 90 160 160 160 160 160 165 185 165 185 160 172 177 177 152 152 Average Speed 172 | 145 160 160 160 160 143 151 179 168 170 177 172 176 185 165 185 189 177 177 189 181 171 Slowest Speed 600 | 160 160 160 160 160 600 200 180 180 180 180 230 185 185 185 185 190 190 177 230 200 172 Overloaded Moves . | . . . . . . . . . . . . . . . . . . . . . . Propulsion Burnouts . | . . . . . . . . . . . . . . . . . . . . . . Robots Hopped . | . . . . . . . . . . . . . . . . . . . . . . Cave-ins Triggered 1 | . . . . . . . . . . . 1 . . . . . . . . . . Teleports 2 | . . . . . . . . . . . . . . . . . . . 1 1 . Exploration Rate (%) 46 | 5 33 24 16 85 48 25 79 85 81 35 36 89 69 63 51 20 19 61 12 86 7 Regions Visited 21 Branch Regions 13 Pre-discovered Areas 7 | . . . 1 2 1 . . . . . . . . 3 . . . . . . . Known Exits Taken 4 | . . . . . . 1 . . . . 1 . . . . 1 . . 1 . . Unknown Exits Taken 17 | 1 1 1 1 1 1 . 1 1 1 1 . 1 1 1 1 . 1 1 . 1 . Scrap Searched 7 | . . . . 4 . . . . . . . 1 1 . 1 . . . . . . Spaces Dug 39 | . . . . . . 1 . . . . 3 . . . . . . 10 3 18 4 Terrain Destroyed 2435 | . 3 . 14 . . 1 33 . 1 179 142 45 1 . . 40 7 21 3 53 1892 Melee 31 | . . . . . . 1 . . . . . . . . . . . 10 3 13 4 Projectile 94 | . . . . . . . 7 . 1 30 30 3 1 . . 3 7 1 . 6 5 AOE 2310 | . 3 . 14 . . . 26 . . 149 112 42 . . . 37 . 10 . 34 1883 Terrain Rammed . | . . . . . . . . . . . . . . . . . . . . . . Walls Destroyed . | . . . . . . . . . . . . . . . . . . . . . . Machines Disabled . | . . . . . . . . . . . . . . . . . . . . . . Actions | -11 -10 -9 -9 -7 -6 -6 -6 -6 -6 -6 -5 -5 -5 -5 -4 -4 -3 -3 -2 -2 -1 --------- Run | Scr Mat Mat Min Zio Pro Fac Ext Cet Arc Hub Fac Upp Upp Zhi Pro Fac Res Qua Res Tes Acc Total 12647 | 49 177 335 35 854 305 1119 688 356 228 272 1709 627 405 247 146 656 905 913 452 1962 207 Wait 1370 | . 10 4 . 14 27 96 4 5 . 26 229 179 9 7 1 64 186 59 96 345 9 Move 9325 | 38 139 262 27 810 254 869 512 297 186 163 1231 413 334 209 139 514 566 716 270 1232 144 Hop . | . . . . . . . . . . . . . . . . . . . . . . Pick Up 214 | 3 3 9 . 2 . 28 5 17 2 4 31 4 1 4 1 9 34 14 16 22 5 Fast Attach 133 | 7 2 5 . 4 2 22 1 2 4 1 8 5 4 6 . 11 6 12 3 27 1 Attach 104 | . 1 . . 2 7 5 1 2 . 8 23 1 . 3 . 5 10 8 6 13 9 Detach 31 | 1 2 2 . 2 1 6 . . . . 4 1 1 1 . 1 1 2 . 4 2 Swap 121 | . . 3 5 4 2 8 8 4 2 6 20 6 3 5 . 3 10 5 5 17 5 Drop 248 | . 2 9 . 7 . 27 10 16 6 1 24 8 5 9 1 16 27 22 16 41 1 Fire 593 | . 18 40 3 . 11 56 24 13 27 61 134 10 3 3 4 33 62 27 7 45 12 Melee 327 | . . . . 9 1 1 . . . . . . . . . . . 48 33 216 19 Ram 1 | . . . . . . . . . . . 1 . . . . . . . . . . Kick . | . . . . . . . . . . . . . . . . . . . . . . Crush 13 | . . 1 . . . 1 2 . 1 2 3 . . . . . 3 . . . . Escape Stasis 3 | . . . . . . . 2 . . . 1 . . . . . . . . . . Rewire 164 | . . . . . . . 119 . . . . . 45 . . . . . . . . Trap . | . . . . . . . . . . . . . . . . . . . . . . Miscellaneous . | . . . . . . . . . . . . . . . . . . . . . . Route ------- -11/Scrapyard -10/Materials -9/Materials -9/Mines -7/Zion -6/Proximity Caves -6/Factory (discovered 6 exits: *Fac x2 / Low x2 / *Ext x2) -6/Extension (discovered 2 exits: *Fac / *Cet) -6/Cetus (discovered 2 exits: *Fac / *Arc) -6/Archives (discovered 3 exits: *Fac / *Hub x2) -6/Hub_04(d) -5/Factory (discovered 2 exits: *Upp x2) -5/Upper Caves -5/Upper Caves (discovered 2 exits: *Fac / *Zhi) -5/Zhirov -4/Proximity Caves -4/Factory -3/Research -3/Quarantine -2/Research (discovered 2 exits: *Tes x2) -2/Testing -1/Access (discovered 2 exits: *Sur / Com) To Epsilon Eridani History --------- Turn | Location | Event 5 | -11/Scrapyard | Discovered new exit (range 15) 71 | -11/Scrapyard | Entered Materials 175 | -10/Materials | Destroyed 8 combat bots 302 | -10/Materials | Build established: Mutant 328 | -10/Materials | Discovered new exit (range 16) 367 | -10/Materials | Entered another Materials area 367 | -9/Materials | Evolved 2 slots: Utility x2 832 | -9/Materials | Build established: Scavenger-Mutant 922 | -9/Materials | Discovered new exit (range 7) 932 | -9/Materials | Entered Mines 980 | -9/Mines | A Derelict revealed a hidden shortcut to a safe place 982 | -9/Mines | Learned location of Zion (-7) 990 | -9/Mines | Entered Zion 1026 | -7/Zion | Found Prototype Launcher 1026 | -7/Zion | Identified Gui. Missile Launcher 1116 | -7/Zion | Discovered new exit (range 13) 1300 | -7/Zion | Learned location of Data Miner (-6) 1639 | -7/Zion | Given A8's code to call for help 1655 | -7/Zion | Gained Derelict followers 1682 | -7/Zion | Learned Factory stockpile data 2054 | -7/Zion | Given the Hacking Drone Bay 2054 | -7/Zion | Found Prototype Device 2057 | -7/Zion | Identified Hacking Drone Bay 2334 | -7/Zion | Entered Proximity Caves 2334 | -6/Proximity Caves | Accompanied by 2 allies 2470 | -6/Proximity Caves | Learned Factory security intel 2522 | -6/Proximity Caves | Learned Factory terminal intel 2624 | -6/Proximity Caves | Spotted B-75 Beast 2685 | -6/Proximity Caves | Core integrity fell below 50% 2692 | -6/Proximity Caves | Allies destroyed B-75 Beast 2721 | -6/Proximity Caves | Lost 13 parts (1p4n3u5w) 2736 | -6/Proximity Caves | Discovered new exit (range 11) 2775 | -6/Proximity Caves | Entered Factory 2775 | -6/Factory | Accompanied by 1 ally 2775 | -6/Factory | Evolved 6 slots: Propulsion x1, Utility x4, Weapon x1 2778 | -6/Factory | Loaded intel: 20 terminal locations 3276 | -6/Factory | Discovered new exit (range 7) 3424 | -6/Factory | Identified exit to Lower Caves 3424 | -6/Factory | Identified exit to Extension 3487 | -6/Factory | Garrison activated, responded to threat 3726 | -6/Factory | Build established: Scavenger-Tank 3853 | -6/Factory | Discovered new exit (range 16) 4085 | -6/Factory | Found Prototype Processor 4085 | -6/Factory | Identified Exp. Signal Interpreter 4094 | -6/Factory | Found Exp. Signal Interpreter 4142 | -6/Factory | Found Prototype Launcher 4142 | -6/Factory | Identified Rocket Array 4151 | -6/Factory | Found Rocket Array 4154 | -6/Factory | Found Rocket Array 4283 | -6/Factory | Build established: Scavenger-Gunner 4467 | -6/Factory | Entered Extension 4610 | -6/Extension | Rescued a captive Derelict 4629 | -6/Extension | Rescued A7 4649 | -6/Extension | Rescued a captive Derelict 4651 | -6/Extension | Rescued a captive Derelict 5032 | -6/Extension | Spotted B-75 Beast 5038 | -6/Extension | Spotted B-75 Beast 5066 | -6/Extension | Allies destroyed B-75 Beast 5074 | -6/Extension | Allies destroyed B-75 Beast 5408 | -6/Extension | Rescued a captive Derelict 5499 | -6/Extension | Build established: Commander-Gunner 5520 | -6/Extension | Discovered new exit (range 10) 5522 | -6/Extension | Discovered new exit (range 6) 5613 | -6/Extension | Entered Cetus 5613 | -6/Cetus | Accompanied by 12 allies (A7) 5618 | -6/Cetus | Acquired a Cetus Manufacturing Module code from A7 5636 | -6/Cetus | Spotted Cetus Guard 5636 | -6/Cetus | Spotted Cetus Guard 5640 | -6/Cetus | Spotted Cetus Guard 5641 | -6/Cetus | Spotted Cetus Guard 5645 | -6/Cetus | Allies destroyed Cetus Guard 5647 | -6/Cetus | Allies destroyed Cetus Guard 5662 | -6/Cetus | Allies destroyed Cetus Guard 5665 | -6/Cetus | Allies destroyed Cetus Guard 5755 | -6/Cetus | Started Cetus Manufacturing Module 5766 | -6/Cetus | Escorted A7 to Cetus Mainframe 5780 | -6/Cetus | Manufactured an Enhanced Grunt 5805 | -6/Cetus | Manufactured an Enhanced Grunt 5817 | -6/Cetus | Cetus Manufacturing Module disabled 5932 | -6/Cetus | Discovered new exit (range 16) 5961 | -6/Cetus | Spotted Cetus Guard 5961 | -6/Cetus | Spotted Cetus Guard 5964 | -6/Cetus | Allies destroyed Cetus Guard 5964 | -6/Cetus | Spotted Cetus Guard 5967 | -6/Cetus | Spotted Cetus Guard 5968 | -6/Cetus | Allies destroyed Cetus Guard 5979 | -6/Cetus | Allies destroyed Cetus Guard 5986 | -6/Cetus | Allies destroyed Cetus Guard 5988 | -6/Cetus | Discovered new exit (range 15) 6001 | -6/Cetus | Met Revision 17 6188 | -6/Cetus | Entered Archives 6188 | -6/Archives | Accompanied by 3 allies (A7) 6193 | -6/Archives | Received a hacking code to weaken MAIN.C 6281 | -6/Archives | Unable to access archive contents 6295 | -6/Archives | Build established: Scavenger-Gunner 6297 | -6/Archives | Unable to access archive contents 6313 | -6/Archives | Unable to access archive contents 6329 | -6/Archives | Unable to access archive contents 6336 | -6/Archives | Discovered new exit (range 14) 6360 | -6/Archives | Discovered new exit (range 15) 6429 | -6/Archives | Discovered new exit (range 16) 6607 | -6/Archives | Entered Hub_04(d) 6707 | -6/Hub_04(d) | Spotted B-75 Beast 6727 | -6/Hub_04(d) | Build established: Scavenger-Tank 6813 | -6/Hub_04(d) | Lost 4 parts (2u2w) 6856 | -6/Hub_04(d) | Garrison activated, responded to threat 6932 | -6/Hub_04(d) | Destroyed 8 combat bots 6957 | -6/Hub_04(d) | First assault squad dispatched 6992 | -6/Hub_04(d) | Discovered new exit (range 42) 7025 | -6/Hub_04(d) | Network Hub disabled 7040 | -6/Hub_04(d) | Disrupted transfer network 7146 | -6/Hub_04(d) | Entered Factory 7146 | -5/Factory | Evolved 2 slots: Utility x2 7165 | -5/Factory | Lost 3 parts (1n1u1w) 7401 | -5/Factory | Build established: Scavenger-Mutant 7446 | -5/Factory | First assault squad dispatched 7465 | -5/Factory | Repaired Centrium Medium Armor Plating 7710 | -5/Factory | Lost 4 parts (1p1n2w) 7983 | -5/Factory | Build established: Scavenger-Tank 8440 | -5/Factory | Identified exit to Upper Caves 8624 | -5/Factory | Central database locked down 9211 | -5/Factory | System corruption reached 10% 9222 | -5/Factory | Build established: Scavenger-Gunner 9865 | -5/Factory | Repaired Centrium Medium Armor Plating 9963 | -5/Factory | Destroyed 7 combat bots 9965 | -5/Factory | Lost 4 parts (1n3u) 10049 | -5/Factory | Crushed by falling debris 10059 | -5/Factory | Entered Upper Caves 10071 | -5/Upper Caves | Attacked by a delusional Derelict stockpiling parts 10477 | -5/Upper Caves | Learned location of 1 exit from Factory 10879 | -5/Upper Caves | Build established: Scavenger-Tank 11011 | -5/Upper Caves | Discovered new exit (range 10) 11024 | -5/Upper Caves | Entered another Upper Caves area 11052 | -5/Upper Caves | Discovered new exit (range 15) 11347 | -5/Upper Caves | Encountered a Warlord checkpoint 11383 | -5/Upper Caves | Learned Factory stockpile data 11507 | -5/Upper Caves | Learned Factory garrison access intel 11516 | -5/Upper Caves | Discovered new exit (range 10) 11598 | -5/Upper Caves | Attacked by a delusional Derelict stockpiling Unaware 11719 | -5/Upper Caves | Entered Zhirov 11719 | -5/Zhirov | Accompanied by 4 allies 11719 | -5/Zhirov | Discovered new exit (range 3) 11758 | -5/Zhirov | Met Zhirov 11820 | -5/Zhirov | Learned location of Quarantine (-3) 11820 | -5/Zhirov | Learned location of Testing (-2) 11820 | -5/Zhirov | Learned location of Command (-1) 11833 | -5/Zhirov | Zhirov requested help retrieving the SGEMP Prototype 11928 | -5/Zhirov | Found Alien Artifact 11947 | -5/Zhirov | Found Alien Artifact 11947 | -5/Zhirov | Identified Integrated Dissipator 11947 | -5/Zhirov | Installed Integrated Dissipator, increased core heat dissipation (+20) 12032 | -5/Zhirov | Build established: Scavenger-Mutant 12104 | -5/Zhirov | Entered Proximity Caves 12104 | -4/Proximity Caves | Accompanied by 4 allies 12353 | -4/Proximity Caves | Discovered new exit (range 14) 12379 | -4/Proximity Caves | Entered Factory 12379 | -4/Factory | Accompanied by 4 allies 12379 | -4/Factory | Evolved 2 slots: Utility x2 12380 | -4/Factory | Identified exit to Research 12382 | -4/Factory | Loaded intel: 4 garrison access locations 12400 | -4/Factory | Build established: Scavenger-Tank 13557 | -4/Factory | Build established: Scavenger-Gunner 13588 | -4/Factory | Entered Research 13588 | -3/Research | Evolved 2 slots: Utility x2 13737 | -3/Research | Found Prototype Slashing Weapon 13740 | -3/Research | Found Prototype Slashing Weapon 13741 | -3/Research | Identified Nanosword (x2) 14284 | -3/Research | Spotted B-86 Titan 14287 | -3/Research | Build established: Hauler-Gunner 14318 | -3/Research | Destroyed B-86 Titan 14346 | -3/Research | Found Prototype Device 14347 | -3/Research | Identified Adv. Kinecellerator 14349 | -3/Research | Lost 3 parts (2u1w) 14360 | -3/Research | Found Hvy. Reflective Plating 14457 | -3/Research | Fabricated Hcp. Storage Unit (x1) 14577 | -3/Research | Repaired Centrium Heavy Treads 15077 | -3/Research | Discovered new exit (range 8) 15087 | -3/Research | Entered Quarantine 15118 | -3/Quarantine | Cryocooling Duct disabled 15133 | -3/Quarantine | Ambient heat levels rising (+20) 15133 | -3/Quarantine | Non-combat units ordered to evacuate 15156 | -3/Quarantine | Found Alien Artifact 15259 | -3/Quarantine | Discovered new exit (range 16) 15279 | -3/Quarantine | Found Sigix Corpse 15591 | -3/Quarantine | Found Alien Slashing Weapon 15591 | -3/Quarantine | Identified Sigix Broadsword 15604 | -3/Quarantine | Spotted Alpha 7 15634 | -3/Quarantine | Destroyed Alpha 7 15644 | -3/Quarantine | Found Prototype Processor 15644 | -3/Quarantine | Identified Exp. Target Analyzer 15652 | -3/Quarantine | Found Prototype Processor 15652 | -3/Quarantine | Identified Exp. Targeting Computer 15659 | -3/Quarantine | Found Prototype Ballistic Gun 15679 | -3/Quarantine | Identified Subatomic Replicator 15679 | -3/Quarantine | Used Subatomic Replicator to create Alien Launcher 15702 | -3/Quarantine | Found Prototype Device 15702 | -3/Quarantine | Identified Exp. ECM Suite 15817 | -3/Quarantine | Found Alien Artifact 15817 | -3/Quarantine | Identified Stasis Generator 15898 | -3/Quarantine | Build established: Hauler-Mutant 16081 | -3/Quarantine | Found Alien Artifact 16084 | -3/Quarantine | Found Alien Artifact 16086 | -3/Quarantine | Found Alien Artifact 16314 | -3/Quarantine | Found Alien Energy Cannon 16468 | -3/Quarantine | Build established: Hauler-Gladiator 16553 | -3/Quarantine | Found Alien Artifact 16553 | -3/Quarantine | Identified Matter Drive 16698 | -3/Quarantine | Entered Research 16698 | -2/Research | Evolved 2 slots: Power x1, Propulsion x1 16698 | -2/Research | Identified Multirail 16913 | -2/Research | Spotted B-90 Cyclops 16961 | -2/Research | Destroyed B-90 Cyclops 16997 | -2/Research | Identified exit to Testing 17060 | -2/Research | Identified Transdimensional Reconstructor (x2) 17060 | -2/Research | Warped through subspace 17166 | -2/Research | Garrison activated, responded to threat 17423 | -2/Research | Build established: Scavenger-Gladiator 17461 | -2/Research | Entered Testing 17720 | -2/Testing | Found Prototype Processor 17720 | -2/Testing | Identified Exp. Core Analyzer 18210 | -2/Testing | Found Prototype Leg 18374 | -2/Testing | Spotted Striker 18376 | -2/Testing | Spotted Striker 18533 | -2/Testing | Build established: Hauler-Gladiator 18757 | -2/Testing | Spotted Alpha 7 18776 | -2/Testing | Destroyed Striker 18797 | -2/Testing | Warped through subspace 18955 | -2/Testing | Destroyed Striker 18983 | -2/Testing | Destroyed Alpha 7 19011 | -2/Testing | Found Multirail 19020 | -2/Testing | Stole the SGEMP Prototype 19494 | -2/Testing | Spotted PY-06GNMY1PJI 19548 | -2/Testing | Destroyed PY-06GNMY1PJI 19795 | -2/Testing | Build established: Hauler-Mutant 20097 | -2/Testing | System corruption reached 10% 20293 | -2/Testing | Found Prototype Energy Gun 20445 | -2/Testing | Found Prototype Launcher 20461 | -2/Testing | First assault squad dispatched 20606 | -2/Testing | Destroyed 9 combat bots 20614 | -2/Testing | Found Prototype Energy Cannon 20614 | -2/Testing | Identified Cld. Nova Cannon 20639 | -2/Testing | Discovered new exit (range 14) 20865 | -2/Testing | Lost 4 parts (4u) 20905 | -2/Testing | Entered Access 20905 | -1/Access | Evolved 2 slots: Utility x2 20906 | -1/Access | Loaded intel: 122 machine locations 20906 | -1/Access | Loaded intel: 108 trap records 20906 | -1/Access | Identified exit to Surface 20906 | -1/Access | Discovered exit to Surface (range 84) 20906 | -1/Access | Identified exit to Command 20906 | -1/Access | Discovered exit to Command (range 118) 20907 | -1/Access | Delivered the SGEMP Prototype to Zhirov 20907 | -1/Access | Zhirov transferred Access data 20909 | -1/Access | Identified Z-bomb Delivery System 21092 | -1/Access | Garrison activated, responded to threat 21155 | -1/Access | First assault squad dispatched 21243 | -1/Access | Zhirov warped through subspace 21244 | -1/Access | Identified Core Cannon 21245 | -1/Access | Spotted B-99 Colossus 21245 | -1/Access | Spotted B-99 Colossus 21247 | -1/Access | Identified Supercharged Sigix Terminator 21248 | -1/Access | Fired Supercharged Sigix Terminator 21248 | -1/Access | Destroyed B-99 Colossus 21269 | -1/Access | Destroyed 21 combat bots 21272 | *** | Escaped! Last Messages --------------- 21257_ B-99 Colossus suffers critical hit. 21257_ Destroyed Multirail. 21257_ Slug penetrates B-99 Colossus. 21257_ Beam penetrates B-99 Colossus. 21258_ B-99 Colossus activates siege mode. 21260_ The unstable cave ceiling collapses. 21260_ Penetrated by Slug. 21261_ Slug penetrates B-99 Colossus. 21261_ Beam penetrates B-99 Colossus. 21264_ Slug penetrates B-99 Colossus. 21264_ Beam penetrates B-99 Colossus. 21266_ The unstable cave ceiling collapses. 21266_ Penetrated by Slug. 21267_ The unstable cave ceiling collapses. 21267_ Penetrated by Slug. 21269_ Multirail destroyed. 21269_ Penetrated by Slug. 21270_ The unstable cave ceiling collapses. 21270_ Penetrated by Slug. 21272_ Ended siege mode. Map ----- +----------------------------------------------------+ | ############+### """ # # # | | # ######## # """ # # # | | # # " # # # | | # # " # # | | # # """ # # """ ! | | " # # " # # """ | | """ # # # # """ | | """ # ;;; # # "S | | " # ; ; "" | | # ; ;;;; ; # # ; "" | | ; ; ; | | ; ; ; ; ; | | ######## ; ; ; ; ;;;; ##+#### | | ######## ;;;;;;; ; ; ; ;;;;; ### | | ######## ; ; ; BB ; ; | | ### ## ; ; ; ; BB ; ; ;;;;; | | ## ; ; ; ; ; ; ; ; ### | | ## ; ; ; ; ; ; ; ;; #### | | ##"" ; ; ; ; ; ; ; ; #### | | ##"" ; ; ; ; ; ; ; ; #### | | ##"" ; ; ; ; ; ; ; ; #### | | ##G ; ; ; ; ; ;;;;;;;;;;;; #### | | ##"" ; ; ; ; ; ; ; ### | | ##"" ; ;; ; ; ; ; ; | | ##!" ;;; ; ; "= ; ; ; | | ##!! = ; ; ; "@ ; ; ; " | | ## ;;; ; ; ; ; ; | | # ; ; ; ; ; ; ; | | ## ; ; ; ; ; ; ; # | | ## ; ; ; ;; ;; ; # | | ######;=;;; ; ; ; ; # | | =%! ; ;; ;;; ; # | | % !% ; ; ; ; ; #### | | #######;;;; ; ; ; ; ; #### | | %= !* ; ; ;g ; ; ; #### | | !* ! =! ; ; ; ; # #### | | ;=|; [ ; ; ; # #### | | ; ;;=%;;;g ;;;;;;;;;;;;;# #### | | ; #### | | ! ; #### | | ; ; # #;;;;;;;;;;; ######### | | """"" # ; ; ##### | | """"" # ; ##### | | """"" # + ; " ##### | | """"" # # ; """ ##### | | """"" + # """ # ### """ ##### | | ########### # """ ## ##### " + | | ############## " ########### ## | | ############## ########### ## | | ############## ########### ## | +----------------------------------------------------+ Best States ------------- Heat Dissipation 175 Energy Generation 57 Energy Capacity 1150 Matter Stores 300 Matter Capacity 300 Sight Range 22 Terrain Scan Density 10 Cloak Strength 4 Base Temperature (-) 150 EM Shielding 4 Armor Coverage 2850 Resistance: KI 30 Resistance: TH 30 Core Shielding 20 Propulsion Shielding 90 Utility Shielding 66 Phase Shifting 10 Evasion (%) 50 Targeting Accuracy 12 Melee Accuracy 8 Target Analysis 12 Core Analysis 15 Armor Integrity Analysis 66 Recoil Reduction 4 Kinecelleration 50 Offensive Hacking 24 Defensive Hacking 24 Item Schematics ----------------- Beamcaster | -7/Zion | Free Riot Gun | -7/Zion | Free Battle Rifle | -7/Zion | Free Slug Cannon | -7/Zion | Free Flamer | -7/Zion | Free Assault Drone Bay | -5/Zhirov | Free Exp. Heat Sink | -5/Zhirov | Free Exp. Optical Array | -5/Zhirov | Free Imp. Arc Thrower | -5/Zhirov | Free Hcp. Storage Unit | -4/Factory | Hacked Robot Schematics ------------------ None Fabricated ------------ Hcp. Storage Unit | x1 | -3/Research Alien Tech Used ----------------- Integrated Dissipator Sigix Broadsword Subatomic Replicator Stasis Generator Matter Drive Transdimensional Reconstructor Core Cannon Supercharged Sigix Terminator Achievements -------------- None Challenges ------------ None Game ------ Seed BladePrecisionDissipator Manual? 0 Play Time 03:59:04 Cumulative 528.9 hours Start 2020.11.16 @ 21:02:38 End 2020.11.20 @ 17:18:28 Sessions 11 Manual Loads 0 Difficulty Rogue Special Mode Halloween2020/ForbiddenLore Game No. 331 Rogue 331 Adventurer 0 Explorer 0 Win Type 0 Total 35 Types 23/1/6/5/0/0/0/0/0 Lore% 86 Gallery% 88 Achievement% 77 Wizard Run 0 Options --------- ASCII 1 Keyboard 0 Movement Numpad Keybinds 0 Fullscreen 2 Font 20/SmallcapsGlow Map View 98x62 Tactical HUD 1 Map Filters NONE Filters NONE Steam 1 RUN: db970275-2161-475b-9b60-2e910b3fde72